[Event "Live Chess"]
[Site "Chess.com"]
[Date "2023.05.21"]
[Round "-"]
[White "trekker123"]
[Black "Jo1ts"]
[Result "1-0"]
[WhiteElo "2083"]
[BlackElo "838"]
[TimeControl "300"]
[EndTime "23:59:06 PDT"]
[Termination "trekker123 won by resignation"]

1. d4 {[%clk 0:04:58.2]} 1... d5 {[%clk 0:04:59.1]} 2. Nf3 {[%clk 0:04:57.3]}
2... c5 {[%clk 0:04:55.7]} 3. c4 {[%clk 0:04:56.5]} 3... e6 {[%clk 0:04:46.5]}
4. Nc3 {[%clk 0:04:52.5]} 4... Nc6 {[%clk 0:04:40.9]} 5. cxd5 {[%clk 0:04:50.4]}
5... exd5 {[%clk 0:04:36.5]} 6. dxc5 {[%clk 0:04:42.1]} 6... Nf6 {[%clk
0:04:35.3]} 7. Bg5 {[%clk 0:04:39.3]} 7... Be6 {[%clk 0:04:30.8]} 8. e3 {[%clk
0:04:34.6]} 8... Bxc5 {[%clk 0:04:25.5]} 9. Be2 {[%clk 0:04:21.5]} 9... h6
{[%clk 0:04:18.8]} 10. Bh4 {[%clk 0:04:19.5]} 10... Bb4 {[%clk 0:04:07.5]} 11.
O-O {[%clk 0:04:16.3]} 11... Bxc3 {[%clk 0:04:04.6]} 12. bxc3 {[%clk 0:04:14.4]}
12... g5 {[%clk 0:03:51.1]} 13. Bg3 {[%clk 0:04:12.8]} 13... Ne4 {[%clk
0:03:43.2]} 14. Rc1 {[%clk 0:04:02.5]} 14... Nxg3 {[%clk 0:03:38.3]} 15. hxg3
{[%clk 0:04:01.3]} 15... h5 {[%clk 0:03:24.9]} 16. Nd4 {[%clk 0:03:59.6]} 16...
h4 {[%clk 0:03:19.6]} 17. g4 {[%clk 0:03:53.2]} 17... Qd7 {[%clk 0:03:15.2]} 18.
Nxc6 {[%clk 0:03:43.3]} 18... bxc6 {[%clk 0:03:11.2]} 19. Qd4 {[%clk 0:03:42.5]}
19... f5 {[%clk 0:02:58.4]} 20. Qxh8+ {[%clk 0:03:40]} 1-0

[Event "Live Chess"]
[Site "Chess.com"]
[Date "2023.05.21"]
[Round "-"]
[White "Supertromp"]
[Black "Singapourfeuj"]
[Result "0-1"]
[WhiteElo "2132"]
[BlackElo "2221"]
[TimeControl "300"]
[EndTime "23:59:07 PDT"]
[Termination "Singapourfeuj won by resignation"]

1. e4 {[%clk 0:04:59.1]} 1... c5 {[%clk 0:04:56.7]} 2. Nf3 {[%clk 0:04:57.6]}
2... d6 {[%clk 0:04:39.1]} 3. Bb5+ {[%clk 0:04:46.5]} 3... Bd7 {[%clk 0:04:38]}
4. Bxd7+ {[%clk 0:04:43.4]} 4... Qxd7 {[%clk 0:04:36.4]} 5. O-O {[%clk
0:04:42.7]} 5... g6 {[%clk 0:04:35.3]} 6. Qe2 {[%clk 0:04:41.9]} 6... Bg7 {[%clk
0:04:34.2]} 7. Rd1 {[%clk 0:04:40.9]} 7... Nc6 {[%clk 0:04:33.1]} 8. c3 {[%clk
0:04:40.5]} 8... Nf6 {[%clk 0:04:31.7]} 9. d4 {[%clk 0:04:39.7]} 9... cxd4
{[%clk 0:04:30]} 10. cxd4 {[%clk 0:04:39.6]} 10... d5 {[%clk 0:04:28.6]} 11. Nc3
{[%clk 0:04:34.9]} 11... dxe4 {[%clk 0:04:26.5]} 12. Nxe4 {[%clk 0:04:34.8]}
12... Nxe4 {[%clk 0:04:24.8]} 13. Qxe4 {[%clk 0:04:34.7]} 13... O-O {[%clk
0:04:20.7]} 14. d5 {[%clk 0:04:33.4]} 14... Na5 {[%clk 0:04:15.5]} 15. Bd2
{[%clk 0:04:13]} 15... b6 {[%clk 0:04:14.7]} 16. Bc3 {[%clk 0:04:11.8]} 16...
Bxc3 {[%clk 0:04:10.3]} 17. bxc3 {[%clk 0:04:11.7]} 17... Rac8 {[%clk
0:04:08.8]} 18. Qe3 {[%clk 0:03:59.6]} 18... Nc4 {[%clk 0:04:02.8]} 19. Qh6
{[%clk 0:03:58.3]} 19... f6 {[%clk 0:03:48.3]} 20. Rd3 {[%clk 0:03:28.5]} 20...
Nd6 {[%clk 0:03:46.9]} 21. Re1 {[%clk 0:03:14.9]} 21... Rc4 {[%clk 0:03:42.3]}
22. Nd4 {[%clk 0:03:11.8]} 22... Rf7 {[%clk 0:03:31.6]} 23. Re6 {[%clk
0:02:40.1]} 23... Rxd4 {[%clk 0:03:18.2]} 24. cxd4 {[%clk 0:02:19.2]} 24... Nf5
{[%clk 0:03:17.1]} 25. Qf4 {[%clk 0:02:10.9]} 25... Qxd5 {[%clk 0:03:15.9]} 26.
Qe4 {[%clk 0:02:06]} 26... Qxa2 {[%clk 0:03:11]} 27. g4 {[%clk 0:02:04.6]} 27...
Nh4 {[%clk 0:03:05.4]} 28. h3 {[%clk 0:01:59.4]} 28... Qb1+ {[%clk 0:02:55.4]}
29. Kh2 {[%clk 0:01:54.1]} 29... Qb4 {[%clk 0:02:52.5]} 30. Rd1 {[%clk
0:01:40.3]} 30... a5 {[%clk 0:02:48.2]} 31. Rc1 {[%clk 0:01:39]} 31... Qxd4
{[%clk 0:02:45.3]} 32. Rc8+ {[%clk 0:01:29.4]} 32... Kg7 {[%clk 0:02:44.1]} 33.
Rxe7 {[%clk 0:01:28]} 33... Qd6+ {[%clk 0:02:36.5]} 34. Kg1 {[%clk 0:01:24]}
34... Rxe7 {[%clk 0:02:35.3]} 35. Qc4 {[%clk 0:01:16.6]} 35... Re1+ {[%clk
0:02:33]} 0-1

[Event "Live Chess"]
[Site "Chess.com"]
[Date "2023.05.21"]
[Round "-"]
[White "bedsdrout"]
[Black "Grookey2012"]
[Result "0-1"]
[WhiteElo "339"]
[BlackElo "568"]
[TimeControl "300"]
[EndTime "23:59:22 PDT"]
[Termination "Grookey2012 won by checkmate"]

1. c3 {[%clk 0:04:55.8]} 1... e6 {[%clk 0:04:55.7]} 2. Nf3 {[%clk 0:04:41.9]}
2... Bc5 {[%clk 0:04:53.8]} 3. d3 {[%clk 0:04:33.3]} 3... Qf6 {[%clk 0:04:48.4]}
4. Bg5 {[%clk 0:04:23.7]} 4... Qf5 {[%clk 0:04:41]} 5. Bf4 {[%clk 0:04:19.1]}
5... Qxf4 {[%clk 0:04:38]} 6. g3 {[%clk 0:04:06.3]} 6... Qd6 {[%clk 0:04:25.2]}
7. Bh3 {[%clk 0:04:01.8]} 7... Qb6 {[%clk 0:04:20.8]} 8. Na3 {[%clk 0:03:51.5]}
8... Bxf2+ {[%clk 0:04:15.9]} 9. Kf1 {[%clk 0:03:40.6]} 9... Nc6 {[%clk
0:04:05]} 10. Nc4 {[%clk 0:03:32.1]} 10... Qb5 {[%clk 0:03:57.9]} 11. Ne3 {[%clk
0:03:28.9]} 11... Bxe3 {[%clk 0:03:53.8]} 12. d4 {[%clk 0:03:16.9]} 12... e5
{[%clk 0:03:44.2]} 13. Qc2 {[%clk 0:03:12.3]} 13... exd4 {[%clk 0:03:40.7]} 14.
Qf5 {[%clk 0:03:10.6]} 14... dxc3 {[%clk 0:03:34.1]} 15. Qe4+ {[%clk 0:03:00.8]}
15... Kd8 {[%clk 0:03:28.9]} 16. Ne5 {[%clk 0:02:54.7]} 16... Nxe5 {[%clk
0:03:24.1]} 17. Rd1 {[%clk 0:02:44.3]} 17... cxb2 {[%clk 0:03:22.9]} 18. Kg2
{[%clk 0:02:41.5]} 18... Nc6 {[%clk 0:03:04.5]} 19. Qf5 {[%clk 0:02:29.2]} 19...
Qxe2+ {[%clk 0:03:00.9]} 20. Qf2 {[%clk 0:01:57.1]} 20... Qxf2# {[%clk
0:03:00.8]} 0-1

[Event "Live Chess"]
[Site "Chess.com"]
[Date "2023.05.21"]
[Round "-"]
[White "Denz14"]
[Black "DaveL5678"]
[Result "1-0"]
[WhiteElo "1036"]
[BlackElo "1009"]
[TimeControl "300"]
[EndTime "23:59:26 PDT"]
[Termination "Denz14 won by resignation"]

1. e4 {[%clk 0:04:58.3]} 1... e6 {[%clk 0:04:56.9]} 2. d4 {[%clk 0:04:56.7]}
2... d5 {[%clk 0:04:56.3]} 3. exd5 {[%clk 0:04:52.1]} 3... exd5 {[%clk
0:04:53.2]} 4. Nc3 {[%clk 0:04:50.2]} 4... Nf6 {[%clk 0:04:49.9]} 5. Nf3 {[%clk
0:04:48.5]} 5... Qe7+ {[%clk 0:04:48.7]} 6. Qe2 {[%clk 0:04:45.4]} 6... Qxe2+
{[%clk 0:04:43.9]} 7. Bxe2 {[%clk 0:04:44.4]} 7... Be6 {[%clk 0:04:38.9]} 8. Bg5
{[%clk 0:04:42.8]} 8... Be7 {[%clk 0:04:35.9]} 9. O-O-O {[%clk 0:04:40.9]} 9...
O-O {[%clk 0:04:33.7]} 10. Ne5 {[%clk 0:04:37.9]} 10... Nc6 {[%clk 0:04:17]} 11.
Nxc6 {[%clk 0:04:34.9]} 11... bxc6 {[%clk 0:04:14.7]} 12. h4 {[%clk 0:04:25.1]}
12... Rfe8 {[%clk 0:04:07.8]} 13. g4 {[%clk 0:04:22.2]} 13... Nxg4 {[%clk
0:04:02.7]} 14. Bxe7 {[%clk 0:04:18.9]} 14... Nxf2 {[%clk 0:03:56.3]} 15. Bg5
{[%clk 0:03:55]} 15... Nxd1 {[%clk 0:03:47.3]} 16. Bxd1 {[%clk 0:03:52.2]} 16...
Bf5 {[%clk 0:03:34.7]} 17. h5 {[%clk 0:03:45.8]} 17... Re6 {[%clk 0:03:26.2]}
18. Rf1 {[%clk 0:03:43.6]} 18... Be4 {[%clk 0:03:15.2]} 19. Nxe4 {[%clk
0:03:38.1]} 19... Rxe4 {[%clk 0:03:12.3]} 20. c3 {[%clk 0:03:25.4]} 20... Rae8
{[%clk 0:03:08.2]} 21. Bc2 {[%clk 0:03:20.8]} 21... Rg4 {[%clk 0:02:56.9]} 22.
Bd2 {[%clk 0:03:09.6]} 22... Rh4 {[%clk 0:02:50.1]} 23. Bd1 {[%clk 0:03:06.3]}
23... Rh2 {[%clk 0:02:39.9]} 24. Bf4 {[%clk 0:02:58.4]} 24... h6 {[%clk
0:02:31]} 25. Bxh2 {[%clk 0:02:54.5]} 25... Re2 {[%clk 0:02:25.8]} 26. Bxe2
{[%clk 0:02:52.5]} 1-0

[Event "Live Chess"]
[Site "Chess.com"]
[Date "2023.05.21"]
[Round "-"]
[White "Shepherds_Pie"]
[Black "toxic_rabbit"]
[Result "1/2-1/2"]
[WhiteElo "1926"]
[BlackElo "1998"]
[TimeControl "300"]
[EndTime "23:59:40 PDT"]
[Termination "Game drawn by repetition"]

1. c4 {[%clk 0:04:56.6]} 1... Nf6 {[%clk 0:04:57.1]} 2. Nc3 {[%clk 0:04:55.2]}
2... g6 {[%clk 0:04:56.5]} 3. g3 {[%clk 0:04:54]} 3... Bg7 {[%clk 0:04:55.9]} 4.
Bg2 {[%clk 0:04:53.1]} 4... c6 {[%clk 0:04:55.6]} 5. e4 {[%clk 0:04:50.8]} 5...
O-O {[%clk 0:04:53.2]} 6. Nge2 {[%clk 0:04:47.2]} 6... e6 {[%clk 0:04:48.4]} 7.
e5 {[%clk 0:04:44.3]} 7... Ne8 {[%clk 0:04:46.6]} 8. d4 {[%clk 0:04:42.6]} 8...
d5 {[%clk 0:04:44.6]} 9. exd6 {[%clk 0:04:37.8]} 9... Nxd6 {[%clk 0:04:37.8]}
10. c5 {[%clk 0:04:31.1]} 10... Nf5 {[%clk 0:04:35.3]} 11. Be3 {[%clk
0:04:29.9]} 11... Nd7 {[%clk 0:04:26.2]} 12. O-O {[%clk 0:04:28.4]} 12... Nf6
{[%clk 0:04:24.3]} 13. Qd2 {[%clk 0:04:26.6]} 13... Nd5 {[%clk 0:04:20.9]} 14.
Nxd5 {[%clk 0:04:22.9]} 14... exd5 {[%clk 0:04:18.6]} 15. Bg5 {[%clk 0:04:19.4]}
15... f6 {[%clk 0:04:00.4]} 16. Bf4 {[%clk 0:04:17.4]} 16... Re8 {[%clk
0:03:58.7]} 17. Rfe1 {[%clk 0:04:14.5]} 17... g5 {[%clk 0:03:55.5]} 18. Be3
{[%clk 0:04:11.3]} 18... Nxe3 {[%clk 0:03:48.9]} 19. fxe3 {[%clk 0:04:09.8]}
19... f5 {[%clk 0:03:46.3]} 20. Nc3 {[%clk 0:04:06.3]} 20... h6 {[%clk
0:03:39.3]} 21. Rf1 {[%clk 0:04:03.8]} 21... Bd7 {[%clk 0:03:33.2]} 22. Qd3
{[%clk 0:04:02.2]} 22... Qe7 {[%clk 0:03:29.6]} 23. Rae1 {[%clk 0:03:59.6]}
23... Rf8 {[%clk 0:03:27]} 24. b4 {[%clk 0:03:49.4]} 24... a6 {[%clk 0:03:24.5]}
25. a4 {[%clk 0:03:47]} 25... Rae8 {[%clk 0:03:21.4]} 26. Nxd5 {[%clk
0:03:39.5]} 26... cxd5 {[%clk 0:03:16.5]} 27. Bxd5+ {[%clk 0:03:38.3]} 27... Kh8
{[%clk 0:03:16]} 28. Bxb7 {[%clk 0:03:35.2]} 28... Bxa4 {[%clk 0:03:08.2]} 29.
Bxa6 {[%clk 0:03:31.2]} 29... Bc6 {[%clk 0:02:37.1]} 30. d5 {[%clk 0:03:28.9]}
30... Rd8 {[%clk 0:02:35.3]} 31. Bc4 {[%clk 0:03:26.6]} 31... Ba8 {[%clk
0:02:09.8]} 32. Rxf5 {[%clk 0:03:21.6]} 32... Rxf5 {[%clk 0:01:57.3]} 33. Qxf5
{[%clk 0:03:19.8]} 33... Rf8 {[%clk 0:01:47.4]} 34. Qd3 {[%clk 0:03:17.4]} 34...
Qe5 {[%clk 0:01:37.9]} 35. b5 {[%clk 0:03:06.8]} 35... Qb2 {[%clk 0:01:31.9]}
36. Qe2 {[%clk 0:02:59.6]} 36... Qb4 {[%clk 0:01:20.4]} 37. c6 {[%clk
0:02:49.9]} 37... Qc5 {[%clk 0:01:18.5]} 38. Rf1 {[%clk 0:02:40.1]} 38... Re8
{[%clk 0:01:06.1]} 39. Rf3 {[%clk 0:02:37.3]} 39... g4 {[%clk 0:00:52.2]} 40.
Rf4 {[%clk 0:02:24]} 40... Rxe3 {[%clk 0:00:50.1]} 41. Qf2 {[%clk 0:02:22.9]}
41... Bd4 {[%clk 0:00:26.3]} 42. Rxd4 {[%clk 0:02:19]} 42... Qxd4 {[%clk
0:00:22.3]} 43. Qf8+ {[%clk 0:02:16.3]} 43... Kh7 {[%clk 0:00:20.9]} 44. Qf7+
{[%clk 0:02:09.2]} 44... Kh8 {[%clk 0:00:18.8]} 45. Qf8+ {[%clk 0:02:03]} 45...
Kh7 {[%clk 0:00:18.1]} 46. Qf7+ {[%clk 0:01:58.6]} 46... Kh8 {[%clk 0:00:17.6]}
47. Qf8+ {[%clk 0:01:57.5]} 1/2-1/2

[Event "Live Chess"]
[Site "Chess.com"]
[Date "2023.05.21"]
[Round "-"]
[White "Mugzwang"]
[Black "Nazar_777"]
[Result "0-1"]
[WhiteElo "1501"]
[BlackElo "1609"]
[TimeControl "300"]
[EndTime "23:59:41 PDT"]
[Termination "Nazar_777 won by resignation"]

1. Nf3 {[%clk 0:04:58.8]} 1... e6 {[%clk 0:04:52.2]} 2. e4 {[%clk 0:04:56.1]}
2... a6 {[%clk 0:04:51.6]} 3. d4 {[%clk 0:04:54.5]} 3... h5 {[%clk 0:04:51]} 4.
Be3 {[%clk 0:04:44.1]} 4... Nf6 {[%clk 0:04:49.3]} 5. Nc3 {[%clk 0:04:36.8]}
5... Be7 {[%clk 0:04:47.9]} 6. e5 {[%clk 0:04:33.1]} 6... Ng4 {[%clk 0:04:46.6]}
7. Bd2 {[%clk 0:04:25]} 7... c5 {[%clk 0:04:44.8]} 8. h3 {[%clk 0:04:23.7]} 8...
Nh6 {[%clk 0:04:42.9]} 9. d5 {[%clk 0:04:07]} 9... b6 {[%clk 0:04:39.9]} 10. d6
{[%clk 0:03:56.3]} 10... Bf8 {[%clk 0:04:38.4]} 11. Qe2 {[%clk 0:03:43.7]} 11...
Bb7 {[%clk 0:04:37.2]} 12. Ne4 {[%clk 0:03:28.8]} 12... Qc8 {[%clk 0:04:36]} 13.
Nfg5 {[%clk 0:03:15.4]} 13... Nc6 {[%clk 0:04:34]} 14. Qf3 {[%clk 0:03:14]}
14... Nf5 {[%clk 0:04:32.4]} 15. g4 {[%clk 0:02:53.5]} 15... Nxe5 {[%clk
0:04:29.6]} 16. Qg2 {[%clk 0:02:42]} 16... Nh4 {[%clk 0:04:22.8]} 17. Qh2 {[%clk
0:02:34.3]} 17... Bxe4 {[%clk 0:04:15.8]} 18. Nxe4 {[%clk 0:02:30.2]} 18...
Nef3+ {[%clk 0:04:10.2]} 0-1

[Event "Live Chess"]
[Site "Chess.com"]
[Date "2023.05.21"]
[Round "-"]
[White "seasidecastle27"]
[Black "Nazarenko_vital"]
[Result "1-0"]
[WhiteElo "1794"]
[BlackElo "1631"]
[TimeControl "300"]
[EndTime "0:00:39 PDT"]
[Termination "seasidecastle27 won on time"]

1. d4 {[%clk 0:04:58.2]} 1... Nf6 {[%clk 0:04:56.9]} 2. Nf3 {[%clk 0:04:56.3]}
2... b5 {[%clk 0:04:54.6]} 3. Bf4 {[%clk 0:04:52.1]} 3... Bb7 {[%clk 0:04:51.2]}
4. e3 {[%clk 0:04:50.6]} 4... b4 {[%clk 0:04:48.9]} 5. a3 {[%clk 0:04:48]} 5...
a5 {[%clk 0:04:41.9]} 6. axb4 {[%clk 0:04:46.4]} 6... axb4 {[%clk 0:04:40.7]} 7.
Rxa8 {[%clk 0:04:45.2]} 7... Bxa8 {[%clk 0:04:39.7]} 8. c4 {[%clk 0:04:41.5]}
8... e6 {[%clk 0:04:32]} 9. Bd3 {[%clk 0:04:38.8]} 9... c5 {[%clk 0:04:28.3]}
10. Nbd2 {[%clk 0:04:36.1]} 10... Nc6 {[%clk 0:04:22.9]} 11. O-O {[%clk
0:04:33.4]} 11... h6 {[%clk 0:04:19.4]} 12. Re1 {[%clk 0:04:27.6]} 12... Be7
{[%clk 0:04:17.7]} 13. b3 {[%clk 0:04:10.4]} 13... O-O {[%clk 0:04:15.8]} 14.
Bb1 {[%clk 0:04:07]} 14... Nh5 {[%clk 0:04:12.5]} 15. Bg3 {[%clk 0:04:01.8]}
15... Nxg3 {[%clk 0:04:10.8]} 16. hxg3 {[%clk 0:04:00.2]} 16... f5 {[%clk
0:04:07.2]} 17. Ne5 {[%clk 0:03:29.9]} 17... Nxe5 {[%clk 0:04:05]} 18. dxe5
{[%clk 0:03:28]} 18... d6 {[%clk 0:03:45.1]} 19. exd6 {[%clk 0:03:16.8]} 19...
Qxd6 {[%clk 0:03:39.5]} 20. Nf3 {[%clk 0:03:15.2]} 20... Qc6 {[%clk 0:03:24.3]}
21. Qe2 {[%clk 0:03:07.8]} 21... Bf6 {[%clk 0:03:05.7]} 22. Rd1 {[%clk 0:03:05]}
22... Qc7 {[%clk 0:02:41.8]} 23. e4 {[%clk 0:02:53.6]} 23... Bxe4 {[%clk
0:02:34.9]} 24. Bxe4 {[%clk 0:02:51.7]} 24... fxe4 {[%clk 0:02:27.9]} 25. Qxe4
{[%clk 0:02:50.2]} 25... Re8 {[%clk 0:02:17.1]} 26. Nh4 {[%clk 0:02:30.7]} 26...
Bd4 {[%clk 0:02:09.7]} 27. Ng6 {[%clk 0:02:25.3]} 27... Qf7 {[%clk 0:01:31.8]}
28. Rd2 {[%clk 0:02:11.4]} 28... Qf5 {[%clk 0:00:51.8]} 29. Re2 {[%clk
0:02:00.6]} 29... Qxe4 {[%clk 0:00:41.4]} 30. Rxe4 {[%clk 0:01:58.4]} 30... Kf7
{[%clk 0:00:40.3]} 31. Ne5+ {[%clk 0:01:54.1]} 31... Kg8 {[%clk 0:00:19.5]} 32.
Nc6 {[%clk 0:01:46.3]} 32... e5 {[%clk 0:00:13.3]} 33. Nxd4 {[%clk 0:01:35.7]}
33... cxd4 {[%clk 0:00:11.4]} 34. f4 {[%clk 0:01:31.6]} 34... d3 {[%clk
0:00:09.7]} 35. Kf2 {[%clk 0:01:27.6]} 35... d2 {[%clk 0:00:02.7]} 36. Ke2
{[%clk 0:01:25.9]} 36... Rd8 {[%clk 0:00:01.7]} 37. Kd1 {[%clk 0:01:23.9]} 1-0

[Event "Live Chess"]
[Site "Chess.com"]
[Date "2023.05.21"]
[Round "-"]
[White "BJAW87"]
[Black "trekker123"]
[Result "0-1"]
[WhiteElo "1432"]
[BlackElo "2083"]
[TimeControl "300"]
[EndTime "0:00:42 PDT"]
[Termination "trekker123 won by resignation"]

1. e4 {[%clk 0:04:59.5]} 1... c6 {[%clk 0:04:58.6]} 2. d4 {[%clk 0:04:57.7]}
2... d5 {[%clk 0:04:58.5]} 3. e5 {[%clk 0:04:57.2]} 3... c5 {[%clk 0:04:57.5]}
4. c3 {[%clk 0:04:56.1]} 4... Nc6 {[%clk 0:04:56.2]} 5. Nf3 {[%clk 0:04:54.8]}
5... Bg4 {[%clk 0:04:55.7]} 6. Be2 {[%clk 0:04:53.6]} 6... e6 {[%clk 0:04:52.4]}
7. O-O {[%clk 0:04:51.9]} 7... Qb6 {[%clk 0:04:48.9]} 8. b3 {[%clk 0:04:11.2]}
8... Bxf3 {[%clk 0:04:47]} 9. Bxf3 {[%clk 0:04:10.1]} 9... cxd4 {[%clk
0:04:46.3]} 10. cxd4 {[%clk 0:04:09.2]} 10... Qxd4 {[%clk 0:04:45.1]} 11. Qxd4
{[%clk 0:04:04]} 11... Nxd4 {[%clk 0:04:43.6]} 12. Bg4 {[%clk 0:03:53.7]} 12...
Nc2 {[%clk 0:04:40.2]} 0-1

[Event "Live Chess"]
[Site "Chess.com"]
[Date "2023.05.21"]
[Round "-"]
[White "martynstanley"]
[Black "hturner40"]
[Result "0-1"]
[WhiteElo "988"]
[BlackElo "1787"]
[TimeControl "300"]
[EndTime "0:00:45 PDT"]
[Termination "hturner40 won by checkmate"]

1. d4 {[%clk 0:04:58.6]} 1... Nf6 {[%clk 0:04:57.2]} 2. e3 {[%clk 0:04:57.4]}
2... g6 {[%clk 0:04:55.7]} 3. Bd3 {[%clk 0:04:54.6]} 3... Bg7 {[%clk 0:04:54.2]}
4. f4 {[%clk 0:04:53.5]} 4... O-O {[%clk 0:04:52.4]} 5. Nf3 {[%clk 0:04:52.7]}
5... Nc6 {[%clk 0:04:49.7]} 6. O-O {[%clk 0:04:52.2]} 6... d6 {[%clk 0:04:48.7]}
7. c3 {[%clk 0:04:50.5]} 7... e5 {[%clk 0:04:47.3]} 8. fxe5 {[%clk 0:04:49]}
8... dxe5 {[%clk 0:04:46.3]} 9. dxe5 {[%clk 0:04:46.7]} 9... Ng4 {[%clk
0:04:43.8]} 10. Na3 {[%clk 0:04:40.7]} 10... Ngxe5 {[%clk 0:04:40.7]} 11. Nc4
{[%clk 0:04:36.9]} 11... Qxd3 {[%clk 0:04:19.9]} 12. Qxd3 {[%clk 0:04:31.7]}
12... Nxd3 {[%clk 0:04:18.7]} 13. Bd2 {[%clk 0:04:26.5]} 13... Be6 {[%clk
0:04:08.7]} 14. b3 {[%clk 0:04:23.3]} 14... Rad8 {[%clk 0:03:53.8]} 15. h4
{[%clk 0:04:18.4]} 15... Nce5 {[%clk 0:03:47.2]} 16. Nfxe5 {[%clk 0:04:16.4]}
16... Nxe5 {[%clk 0:03:45.7]} 17. Be1 {[%clk 0:04:06.4]} 17... Nxc4 {[%clk
0:03:42.5]} 18. bxc4 {[%clk 0:04:05.2]} 18... Bxc4 {[%clk 0:03:41.3]} 19. Rf2
{[%clk 0:04:04.3]} 19... Bh6 {[%clk 0:03:36.2]} 20. Rd2 {[%clk 0:04:02]} 20...
Bxe3+ {[%clk 0:03:33.8]} 21. Kh2 {[%clk 0:03:57.4]} 21... Bxd2 {[%clk
0:03:31.3]} 22. Bxd2 {[%clk 0:03:56.7]} 22... Rxd2 {[%clk 0:03:29.1]} 23. a4
{[%clk 0:03:54]} 23... Re8 {[%clk 0:03:26.2]} 24. Ra3 {[%clk 0:03:51.9]} 24...
Ree2 {[%clk 0:03:22.3]} 25. Kh3 {[%clk 0:03:50]} 25... Rxg2 {[%clk 0:03:17]} 26.
h5 {[%clk 0:03:46]} 26... Be6+ {[%clk 0:03:14.2]} 27. Kh4 {[%clk 0:03:43.9]}
27... Rg4+ {[%clk 0:03:08.1]} 28. Kh3 {[%clk 0:03:42.3]} 28... gxh5 {[%clk
0:02:51]} 29. c4 {[%clk 0:03:39.4]} 29... Rdg2 {[%clk 0:02:38]} 30. c5 {[%clk
0:03:36.6]} 30... R4g3+ {[%clk 0:02:34.2]} 31. Kh4 {[%clk 0:03:32.8]} 31... Rxa3
{[%clk 0:02:31.6]} 32. a5 {[%clk 0:03:31.7]} 32... Ra1 {[%clk 0:02:29.8]} 33. c6
{[%clk 0:03:30.7]} 33... Rh1# {[%clk 0:02:27.5]} 0-1

[Event "Live Chess"]
[Site "Chess.com"]
[Date "2023.05.21"]
[Round "-"]
[White "amazinggoalkeeper"]
[Black "MaximKris"]
[Result "0-1"]
[WhiteElo "507"]
[BlackElo "1827"]
[TimeControl "300"]
[EndTime "0:01:06 PDT"]
[Termination "MaximKris won by resignation"]

1. e4 {[%clk 0:04:57.9]} 1... e5 {[%clk 0:04:58.9]} 2. Nf3 {[%clk 0:04:56.9]}
2... Nc6 {[%clk 0:04:56.3]} 3. Bc4 {[%clk 0:04:54.1]} 3... Bc5 {[%clk
0:04:54.4]} 4. Bb3 {[%clk 0:04:49.4]} 4... Nf6 {[%clk 0:04:52.6]} 5. Nxe5 {[%clk
0:04:47.5]} 5... Nxe5 {[%clk 0:04:51.1]} 6. d4 {[%clk 0:04:47.4]} 6... Bd6
{[%clk 0:04:49.9]} 7. dxe5 {[%clk 0:04:46.3]} 7... Bxe5 {[%clk 0:04:49.8]} 8.
Qe2 {[%clk 0:04:37.5]} 8... O-O {[%clk 0:04:45.1]} 9. O-O {[%clk 0:04:36.1]}
9... d6 {[%clk 0:04:41.1]} 10. Nc3 {[%clk 0:04:29.1]} 10... Bg4 {[%clk
0:04:37.8]} 11. Qe3 {[%clk 0:04:26]} 11... c5 {[%clk 0:03:54.4]} 12. Nd5 {[%clk
0:04:22.4]} 12... Nxd5 {[%clk 0:03:52.5]} 13. exd5 {[%clk 0:04:21.1]} 13... Qf6
{[%clk 0:03:46]} 14. Qg5 {[%clk 0:04:14.1]} 14... Qxg5 {[%clk 0:03:39.5]} 15.
Bxg5 {[%clk 0:04:12.7]} 15... Bxb2 {[%clk 0:03:32.8]} 16. Be7 {[%clk 0:04:12.6]}
16... Bxa1 {[%clk 0:03:27.8]} 17. Bxf8 {[%clk 0:04:11.2]} 17... Be5 {[%clk
0:03:27.1]} 0-1